fUSD/lending_fUSD_20240318
["ID","MTS","AMOUNT","RATE_DAILY","PERIOD"]
[319487305,1710800027167,-20689.66,0.00026575,2]
[319487306,1710800027181,-638.22,0.00026575,2]
[319487307,1710800027195,-1088.66,0.00026575,2]
[319487308,1710800027209,-1157.8,0.00026575,2]
[319487309,1710800027224,-1110.24,0.00026575,2]
[319487310,1710800027239,-1090.38,0.00026575,2]
[319487311,1710800027254,-1367.92,0.00026575,2]
[319487312,1710800027268,-1716.46,0.00026575,2]
[319487313,1710800027282,-605.07,0.00026575,2]
[319487314,1710800027296,-622.92,0.00026575,2]
[319487315,1710800027309,-8212.3,0.00026575,2]
[319487316,1710800027324,-738.47,0.00026575,2]
[319487317,1710800027337,-6843.13,0.00026575,2]
[319487318,1710800027352,-2375.9,0.00026575,2]
[319487319,1710800027365,-1814.94,0.00026575,2]
[319487320,1710800027380,-1412.21,0.00026575,2]
[319487321,1710800027394,-720.26,0.00026575,2]
[319487322,1710800027409,-642.05,0.00026575,2]
[319487323,1710800027423,-2621.03,0.00026575,2]
[319487324,1710800027438,-7701.15,0.00026575,2]
[319487325,1710800027453,-867.51,0.00026575,2]
[319487326,1710800027466,-70618.05,0.00026575,2]
[319487327,1710800027480,-1283.55,0.00026575,2]
[319487328,1710800027495,-933.88,0.00026575,2]
[319487329,1710800027509,-651.4,0.00026575,2]
[319487330,1710800027525,-1968.24,0.00026575,2]
[319487331,1710800027540,-1507.28,0.00026575,2]
[319487332,1710800027556,-15625.12,0.00026575,2]
[319487333,1710800027570,-500.0,0.00026575,2]
[319487334,1710800027584,-2930.24,0.00026575,2]
[319487335,1710800027598,-908.19,0.00026575,2]
[319487336,1710800027613,-836.99,0.00026575,2]
[319487337,1710800027628,-1649.1,0.00026575,2]
[319487338,1710800027643,-386.07,0.00026575,2]
[319487339,1710800027658,-1000.59,0.00026575,2]
[319487340,1710800027672,-3638.93,0.00026575,2]
[319487341,1710800027687,-500.0,0.00026575,2]
[319487342,1710800027703,-2240.25,0.00026575,2]
[319487343,1710800027716,-500.0,0.00026575,2]
[319487344,1710800027730,-1827.91,0.00026575,2]
[319487345,1710800027745,-876.56,0.00026575,2]
[319487346,1710800027759,-2226.67,0.00026575,2]
[319487347,1710800027773,-3729.26,0.00026575,2]
[319487348,1710800027789,-500.0,0.00026575,2]
[319487349,1710800027804,-500.0,0.00026575,2]
[319487350,1710800027819,-3606.56,0.00026575,2]
[319487351,1710800027834,-1207.02,0.00026575,2]
[319487352,1710800027848,-963.32,0.00026575,2]
[319487353,1710800027862,-28470.72,0.00026575,2]
[319487354,1710800027876,-2980.27,0.00026575,2]
[319487355,1710800027890,-500.0,0.00026575,2]
[319487356,1710800027904,-500.0,0.00026575,2]
[319487357,1710800027918,-1014.54,0.00026575,2]
[319487358,1710800027933,-1007.55,0.00026575,2]
[319487359,1710800027947,-500.0,0.00026575,2]
[319487360,1710800027962,-12991.16,0.00026575,2]
[319487361,1710800027976,-825.64,0.00026575,2]
[319487362,1710800027990,-1000.56,0.00026575,2]
[319487363,1710800028006,-1967.21,0.00026575,2]
[319487364,1710800028021,-500.0,0.00026575,2]
[319487365,1710800028035,-500.0,0.00026575,2]
[319487366,1710800028049,-989.42,0.00026575,2]
[319487367,1710800028062,-3061.78,0.00026575,2]
[319487368,1710800028077,-3350.06,0.00026575,2]
[319487369,1710800028092,-1418.83,0.00026575,2]
[319487370,1710800028105,-578.72,0.00026575,2]
[319487371,1710800028119,-500.0,0.00026575,2]
[319487372,1710800028133,-1283.92,0.00026575,2]
[319487373,1710800028148,-1017.47,0.00026575,2]
[319487374,1710800028163,-793.34,0.00026575,2]
[319487375,1710800028177,-500.0,0.00026575,2]
[319487376,1710800028192,-1383.54,0.00026575,2]
[319487377,1710800028207,-3058.85,0.00026575,2]
[319487378,1710800028222,-544.38,0.00026575,2]
[319487379,1710800028237,-500.0,0.00026575,2]
[319487380,1710800028254,-4863.68,0.00026575,2]
[319487381,1710800028268,-3420.67,0.00026575,2]
[319487382,1710800028282,-1467.98,0.00026575,2]
[319487383,1710800028297,-909.74,0.00026575,2]
[319487384,1710800028311,-466.16727791,0.00026575,2]
[319487385,1710800028326,-500.0,0.00026575,2]
[319487386,1710800028339,-616.14,0.00026575,2]
[319487387,1710800028355,-500.0,0.00026575,2]
[319487388,1710800028368,-1472.05,0.00026575,2]
[319487389,1710800028383,-1391.49,0.00026575,2]
[319487390,1710800028398,-500.0,0.00026575,2]
[319487391,1710800028412,-501.4,0.00026575,2]
[319487392,1710800028427,-1044.22,0.00026575,2]
[319487393,1710800028441,-736.5,0.00026575,2]
[319487394,1710800028454,-1726.54,0.00026575,2]
[319487395,1710800028469,-1026.28,0.00026575,2]
[319487396,1710800028483,-2302.64,0.00026575,2]
[319487397,1710800028500,-1165.44,0.00026575,2]
[319487398,1710800028515,-12189.86,0.00026575,2]
[319487399,1710800028530,-1375.05,0.00026575,2]
[319487400,1710800028544,-1316.33,0.00026575,2]
[319487401,1710800028559,-515.52,0.00026575,2]
[319487402,1710800028574,-1294.68,0.00026575,2]
[319487403,1710800028588,-500.0,0.00026575,2]
[319487404,1710800028603,-1925.65,0.00026575,2]
[319487405,1710800028620,-1545.51,0.00026575,2]
[319487406,1710800028635,-728.8,0.00026575,2]
[319487407,1710800028650,-1530.51,0.00026575,2]
[319487408,1710800028664,-1677.75,0.00026575,2]
[319487409,1710800028678,-6062.83,0.00026575,2]
[319487410,1710800028694,-500.0,0.00026575,2]
[319487411,1710800028708,-630.76,0.00026575,2]
[319487412,1710800028723,-697.84,0.00026575,2]
[319487413,1710800028736,-1154.87,0.00026575,2]
[319487414,1710800029141,-1111.24,0.00026575,2]
[319487415,1710800029214,-2083.43,0.00026575,2]
[319487416,1710800029224,-500.0,0.00026575,2]
[319487417,1710800029234,-873.95,0.00026575,2]
[319487418,1710800029243,-1539.77,0.00026575,2]
[319487419,1710800029253,-572.93,0.00026575,2]
[319487420,1710800029263,-1218.6,0.00026575,2]
[319487421,1710800029272,-762.41,0.00026575,2]
[319487422,1710800029281,-805.44,0.00026575,2]
[319487423,1710800029290,-2278.77,0.00026575,2]
[319487424,1710800029299,-2011.92,0.00026575,2]
[319487425,1710800029308,-971.93,0.00026575,2]
[319487426,1710800029317,-2062.21,0.00026575,2]
[319487427,1710800029327,-768.87,0.00026575,2]
[319487428,1710800029336,-500.0,0.00026575,2]
[319487429,1710800029345,-1606.59,0.00026575,2]
[319487430,1710800029354,-1340.16,0.00026575,2]
[319487431,1710800029363,-1007.76,0.00026575,2]
[319487432,1710800029373,-4162.89,0.00026575,2]
[319487433,1710800029382,-1051.06,0.00026575,2]
[319487434,1710800029391,-699.3,0.00026575,2]
[319487435,1710800029401,-1220.37,0.00026575,2]
[319487436,1710800029410,-1416.75,0.00026575,2]
[319487437,1710800029420,-518.73,0.00026575,2]
[319487438,1710800029430,-1475.69,0.00026575,2]
[319487439,1710800029439,-960.76,0.00026575,2]
[319487440,1710800029449,-1579.78,0.00026575,2]
[319487441,1710800029458,-598.24,0.00026575,2]
[319487442,1710800029467,-3689.48,0.00026575,2]
[319487443,1710800029476,-685.26,0.00026575,2]
[319487444,1710800029485,-1883.02,0.00026575,2]
[319487445,1710800029495,-725.93,0.00026575,2]
[319487446,1710800029504,-645.2327295,0.00026575,2]
[319487447,1710800029514,-582.85,0.00026575,2]
[319487448,1710800029523,-597.67,0.00026575,2]
[319487449,1710800029533,-945.24,0.00026575,2]
[319487450,1710800029543,-3264.27,0.00026575,2]
[319487451,1710800029553,-1114.59,0.00026575,2]
[319487452,1710800029562,-1101.09,0.00026575,2]
[319487453,1710800029572,-3081.47,0.00026575,2]
[319487454,1710800029582,-1090.35,0.00026575,2]
[319487455,1710800029591,-545.12,0.00026575,2]
[319487456,1710800029601,-525.35,0.00026575,2]
[319487457,1710800029614,-926.2,0.00026575,2]
[319487458,1710800029624,-738.48,0.00026575,2]
[319487459,1710800029633,-661.43,0.00026575,2]
[319487460,1710800029645,-521.01,0.00026575,2]
[319487461,1710800029654,-3873.88,0.00026575,2]
[319487462,1710800029663,-1479.1,0.00026575,2]
[319487463,1710800029672,-2791.36,0.00026575,2]
[319487464,1710800029682,-15199.29,0.00026575,2]
[319487465,1710800029692,-8062.17,0.00026575,2]
[319487466,1710800029701,-524.35,0.00026575,2]
[319487467,1710800029711,-1469.15,0.00026575,2]
[319487468,1710800029720,-1368.38,0.00026575,2]
[319487469,1710800029730,-578.84,0.00026575,2]
[319487470,1710800029739,-500.0,0.00026575,2]
[319487471,1710800029749,-625.58,0.00026575,2]
[319487472,1710800029758,-500.0,0.00026575,2]
[319487473,1710800029767,-659.71,0.00026575,2]
[319487474,1710800029777,-627.20634702,0.00026575,2]
[319487475,1710800029786,-1165.69,0.00026575,2]
[319487476,1710800029795,-522.17,0.00026575,2]
[319487477,1710800029805,-500.0,0.00026575,2]
[319487478,1710800029814,-547.31,0.00026575,2]
[319487479,1710800029824,-500.0,0.00026575,2]
[319487480,1710800029833,-1931.5,0.00026575,2]
[319487481,1710800029843,-1852.16,0.00026575,2]
[319487482,1710800029853,-5194.45,0.00026575,2]
[319487483,1710800029862,-4366.56,0.00026575,2]
[319487484,1710800029872,-2626.87,0.00026575,2]
[319487485,1710800029881,-643.53,0.00026575,2]
[319487486,1710800029890,-4566.9,0.00026575,2]
[319487487,1710800029900,-1560.19,0.00026575,2]
[319487488,1710800029910,-574.42,0.00026575,2]
[319487489,1710800029919,-7356.66,0.00026575,2]
[319487490,1710800029929,-2335.37,0.00026575,2]
[319487491,1710800029938,-1433.97,0.00026575,2]
[319487492,1710800029948,-1302.8,0.00026575,2]
[319487493,1710800029957,-12149.23,0.00026575,2]
[319487494,1710800029966,-976.06,0.00026575,2]
[319487495,1710800029976,-500.0,0.00026575,2]
[319487496,1710800029986,-596.59,0.00026575,2]
[319487497,1710800029997,-773.37,0.00026575,2]
[319487498,1710800030006,-329.8237135,0.00026575,2]
[319487499,1710800030015,-12163.47,0.00026575,2]
[319487500,1710800030024,-500.0,0.00026575,2]
[319487501,1710800030034,-1040.95,0.00026575,2]
[319487502,1710800030044,-4014.74,0.00026575,2]
[319487503,1710800030054,-1666.88,0.00026575,2]
[319487504,1710800030064,-676.8,0.00026575,2]
[319487505,1710800030074,-798.37,0.00026575,2]
[319487506,1710800030084,-2937.18,0.00026575,2]
[319487507,1710800030093,-514.53,0.00026575,2]
[319487508,1710800030103,-630.18,0.00026575,2]
[319487509,1710800030113,-500.0,0.00026575,2]
[319487510,1710800030123,-4002.95,0.00026575,2]
[319487511,1710800030134,-500.0,0.00026575,2]
[319487512,1710800030143,-1825.34,0.00026575,2]
[319487513,1710800030153,-2538.34,0.00026575,2]
[319487514,1710800030163,-713.44,0.00026575,2]
[319487515,1710800030172,-1704.18,0.00026575,2]
[319487516,1710800030182,-2264.59,0.00026575,2]
[319487517,1710800030191,-999.91,0.00026575,2]
[319487518,1710800030201,-3032.32,0.00026575,2]
[319487519,1710800030210,-1092.32,0.00026575,2]
[319487520,1710800030220,-1455.99,0.00026575,2]
[319487521,1710800030229,-1138.58,0.00026575,2]
[319487522,1710800030239,-951.86,0.00026575,2]
[319487523,1710800030249,-780.67,0.00026575,2]
[319487524,1710800030259,-1309.57,0.00026575,2]
[319487525,1710800030268,-633.02800908,0.00026575,2]
[319487526,1710800030278,-500.0,0.00026575,2]
[319487527,1710800030287,-4539.82,0.00026575,2]
[319487528,1710800030297,-4994.79,0.00026575,2]
[319487529,1710800030307,-1485.77,0.00026575,2]
[319487530,1710800030316,-849.91,0.00026575,2]
[319487531,1710800030325,-7034.98,0.00026575,2]
[319487532,1710800030335,-500.0,0.00026575,2]
[319487533,1710800030345,-1794.57,0.00026575,2]
[319487534,1710800030355,-750.9,0.00026575,2]
[319487535,1710800030365,-6038.49,0.00026575,2]
[319487536,1710800030375,-2385.09,0.00026575,2]
[319487537,1710800030384,-1615.86,0.00026575,2]
[319487538,1710800030395,-1135.58,0.00026575,2]
[319487539,1710800030405,-979.41,0.00026575,2]
[319487540,1710800030415,-6456.64,0.00026575,2]
[319487541,1710800030425,-942.12,0.00026575,2]
[319487542,1710800030434,-1504.81,0.00026575,2]
[319487543,1710800030445,-854.48,0.00026575,2]
[319487544,1710800030455,-508.22,0.00026575,2]
[319487545,1710800030465,-662.67,0.00026575,2]
[319487546,1710800030474,-4121.83,0.00026575,2]
[319487547,1710800030485,-40338.6,0.00026575,2]
[319487548,1710800030496,-2157.68,0.00026575,2]
[319487549,1710800030507,-1120.6,0.00026575,2]
[319487550,1710800030517,-2520.23,0.00026575,2]
[319487551,1710800030527,-454.38097217,0.00026575,2]
[319487552,1710800030537,-2358.27,0.00026575,2]
[319487553,1710800030547,-2259.16,0.00026575,2]
[319487554,1710800030557,-1192.63,0.00026575,2]
[319487555,1710800030566,-6231.23,0.00026575,2]
[319487556,1710800030575,-3000.0,0.000266,2]
[319487557,1710800030585,-302.44,0.0002661,2]
[319487558,1710800030595,-150.0,0.0002661,4]
[319487559,1710800030605,-150.0,0.0002664,4]
[319487560,1710800030618,-1006.0,0.00026644,2]
[319487561,1710800030628,-4623.0,0.00026644,2]
[319487562,1710800030638,-1063.0,0.00026644,2]
[319487563,1710800030648,-341.0,0.00026644,2]
[319487564,1710800030658,-1000.0,0.00026646,2]
[319487565,1710800030668,-2827.05937,0.00026656,2]
[319487566,1710800030677,-15297.48386,0.00026656,2]
[319487567,1710800030688,-429.480478,0.00026656,2]
[319487568,1710800030698,-6055.244887,0.00026656,2]
[319487569,1710800030707,-445.921145,0.00026656,2]
[319487570,1710800030716,-4350.436317,0.00026656,2]
[319487571,1710800030726,-4883.515609,0.00026656,2]
[319487572,1710800030735,-1917.369177,0.00026656,2]
[319487573,1710800030746,-492.466477,0.00026656,2]
[319487574,1710800030755,-1554.925549,0.00026656,2]
[319487575,1710800030765,-826.131726,0.00026656,2]
[319487576,1710800030774,-4326.02536,0.00026656,2]
[319487577,1710800030784,-998.550556,0.00026656,2]
[319487578,1710800030793,-201.770721,0.00026656,2]
[319487579,1710800030803,-1010.046116,0.00026656,2]
[319487580,1710800030812,-360.895303,0.00026656,2]
[319487581,1710800030822,-156.382123,0.00026656,2]
[319487582,1710800030831,-10032.029962,0.00026656,2]
[319487583,1710800030840,-2478.395176,0.00026656,2]
[319487584,1710800030849,-15587.619795,0.00026656,2]
[319487585,1710800030858,-166.440208,0.00026656,2]
[319487586,1710800030868,-172.016155,0.00026656,2]
[319487587,1710800030877,-7394.0,0.000267,2]
[319487588,1710800030886,-558.0,0.00026707,2]
[319487589,1710800030896,-385.0,0.00026712,2]
[319487590,1710800030905,-150.0,0.00026726,4]
[319487591,1710800030914,-162.6041618,0.00026728,2]
[319487592,1710800030923,-150.0,0.00026734,4]
[319487593,1710800030933,-150.0,0.00026738,2]
[319487594,1710800030942,-155.18569218,0.0002677,2]
[319487595,1710800030951,-1026.0,0.00026775,2]
[319487596,1710800030961,-1919.09999999,0.00026781,7]
[319487597,1710800030970,-915.66349884,0.00026781,7]
[319487598,1710800030979,-23264.7421368,0.00026781,7]
[319487599,1710800030988,-2592.94642785,0.00026781,7]
[319487600,1710800030998,-1000158.56428631,0.000268,2]
[319487601,1710800031007,-754.65,0.00026849,2]
[319487602,1710800031016,-500.0,0.00026849,2]
[319487603,1710800031026,-1183.48,0.00026849,2]
[319487604,1710800031035,-841.06,0.00026849,2]
[319487605,1710800031045,-1050.21,0.00026849,2]
[319487606,1710800031054,-603.24,0.00026849,2]
[319487607,1710800031064,-864.95,0.00026849,2]
[319487608,1710800031074,-801.98,0.00026849,2]
[319487609,1710800031083,-2023.13,0.00026849,2]
[319487610,1710800031092,-2257.25,0.00026849,2]
[319487611,1710800031102,-1080.91,0.00026849,2]
[319487612,1710800031111,-794.11,0.00026849,2]
[319487613,1710800031120,-753.34,0.00026849,2]
[319487614,1710800031130,-500.0,0.00026849,2]
[319487615,1710800031140,-841.73,0.00026849,2]
[319487616,1710800031149,-637.28,0.00026849,2]
[319487617,1710800031159,-2219.16,0.00026849,2]
[319487618,1710800031168,-822.95,0.00026849,2]
[319487619,1710800031178,-532.03,0.00026849,2]
[319487620,1710800031187,-500.0,0.00026849,2]
[319487621,1710800031197,-666.77,0.00026849,2]
[319487622,1710800031206,-500.0,0.00026849,2]
[319487623,1710800031215,-2410.75,0.00026849,2]
[319487624,1710800031225,-1083.62,0.00026849,2]
[319487625,1710800031234,-1096.76,0.00026849,2]
[319487626,1710800031244,-1579.95,0.00026849,2]
[319487627,1710800031254,-1153.52,0.00026849,2]
[319487628,1710800031263,-1079.02,0.00026849,2]
[319487629,1710800031273,-500.0,0.00026849,2]
[319487630,1710800031283,-604.92,0.00026849,2]
[319487631,1710800031293,-2112.17,0.00026849,2]
[319487632,1710800031302,-788.06,0.00026849,2]
[319487633,1710800031312,-965.6,0.00026849,2]
[319487634,1710800031321,-567.24,0.00026849,2]
[319487635,1710800031331,-1057.53,0.00026849,2]
[319487636,1710800031340,-1346.77,0.00026849,2]
[319487637,1710800031350,-712.98,0.00026849,2]
[319487638,1710800031360,-624.81,0.00026849,2]
[319487639,1710800031370,-500.0,0.00026849,2]
[319487640,1710800031380,-750.79,0.00026849,2]
[319487641,1710800031390,-1820.6,0.00026849,2]
[319487642,1710800031400,-628.64,0.00026849,2]
[319487643,1710800031410,-787.89,0.00026849,2]
[319487644,1710800031419,-593.51,0.00026849,2]
[319487645,1710800031429,-750.42,0.00026849,2]
[319487646,1710800031438,-622.98,0.00026849,2]
[319487647,1710800031449,-1628.79,0.00026849,2]
[319487648,1710800031459,-562.08676443,0.00026849,2]
[319487649,1710800031469,-3414.73,0.00026849,2]
[319487650,1710800031479,-830.73,0.00026849,2]
[319487651,1710800031489,-837.33,0.00026849,2]
[319487652,1710800031500,-1594.83,0.00026849,2]
[319487653,1710800031509,-1565.76,0.00026849,2]
[319487654,1710800031519,-2289.86,0.00026849,2]
[319487655,1710800031529,-2327.27,0.00026849,2]
[319487656,1710800031539,-1043.46,0.00026849,2]
[319487657,1710800031549,-1166.79,0.00026849,2]
[319487658,1710800031559,-549.91,0.00026849,2]
[319487659,1710800031569,-568.66,0.00026849,2]
[319487660,1710800031579,-771.19,0.00026849,2]
[319487661,1710800031588,-2753.66,0.00026849,2]
[319487662,1710800031598,-1513.08,0.00026849,2]
[319487663,1710800031608,-1842.48,0.00026849,2]
[319487664,1710800031621,-1460.74,0.00026849,2]
[319487665,1710800031630,-942.07,0.00026849,2]
[319487666,1710800031640,-895.46,0.00026849,2]
[319487667,1710800031649,-1989.79,0.00026849,2]
[319487668,1710800031659,-1990.34,0.00026849,2]
[319487669,1710800031670,-500.0,0.00026849,2]
[319487670,1710800031679,-594.54,0.00026849,2]
[319487671,1710800031689,-570.11,0.00026849,2]
[319487672,1710800031700,-461.84242995,0.00026849,2]
[319487673,1710800031709,-2010.18,0.00026849,2]
[319487674,1710800031718,-1089.38,0.00026849,2]
[319487675,1710800031728,-1225.65,0.00026849,2]
[319487676,1710800031738,-705.19,0.00026849,2]
[319487677,1710800031747,-2976.15,0.00026849,2]
[319487678,1710800031756,-508.99,0.00026849,2]
[319487679,1710800031767,-501.15,0.00026849,2]
[319487680,1710800031776,-1173.9,0.00026849,2]
[319487681,1710800031786,-1787.1,0.00026849,2]
[319487682,1710800031796,-1969.89,0.00026849,2]
[319487683,1710800031805,-551.56,0.00026849,2]
[319487684,1710800031814,-634.39,0.00026849,2]
[319487685,1710800031825,-515.85,0.00026849,2]
[319487686,1710800031835,-1763.14,0.00026849,2]
[319487687,1710800031846,-500.0,0.00026849,2]
[319487688,1710800031856,-1610.23,0.00026849,2]
[319487689,1710800031866,-698.44,0.00026849,2]
[319487690,1710800031875,-757.78,0.00026849,2]
[319487691,1710800031885,-1107.01,0.00026849,2]
[319487692,1710800031894,-3621.53,0.00026849,2]
[319487693,1710800031903,-3272.98,0.00026849,2]
[319487694,1710800031912,-500.0,0.00026849,2]
[319487695,1710800031921,-617.42,0.00026849,2]
[319487696,1710800031930,-500.0,0.00026849,2]
[319487697,1710800031939,-1059.1,0.00026849,2]
[319487698,1710800031948,-833.03,0.00026849,2]
[319487699,1710800031958,-2995.13,0.00026849,2]
[319487700,1710800031967,-500.0,0.00026849,2]
[319487701,1710800031976,-1379.17,0.00026849,2]
[319487702,1710800031986,-2205.14,0.00026849,2]
[319487703,1710800031995,-1296.97,0.00026849,2]
[319487704,1710800032005,-684.91,0.00026849,2]
[319487705,1710800032014,-1167.23,0.00026849,2]
[319487706,1710800032023,-1111.67,0.00026849,2]
[319487707,1710800032032,-1840.74,0.00026849,2]
[319487708,1710800032041,-1159.15,0.00026849,2]
[319487709,1710800032050,-1071.26,0.00026849,2]
[319487710,1710800032060,-732.2,0.00026849,2]
[319487711,1710800032069,-2487.12,0.00026849,2]
[319487712,1710800032078,-1409.81,0.00026849,2]
[319487713,1710800032087,-2258.29,0.00026849,2]
[319487714,1710800032096,-885.61,0.00026849,2]
[319487715,1710800032106,-728.7,0.00026849,2]
[319487716,1710800032114,-981.29,0.00026849,2]
[319487717,1710800032124,-619.02,0.00026849,2]
[319487718,1710800032133,-3027.38,0.00026849,2]
[319487719,1710800032142,-2230.77,0.00026849,2]
[319487720,1710800032151,-2148.85,0.00026849,2]
[319487721,1710800032160,-847.31,0.00026849,2]
[319487722,1710800032170,-500.0,0.00026849,2]
[319487723,1710800032179,-1040.92,0.00026849,2]
[319487724,1710800032189,-1016.05,0.00026849,2]
[319487725,1710800032198,-625.78,0.00026849,2]
[319487726,1710800032208,-1988.29,0.00026849,2]
[319487727,1710800032218,-673.87,0.00026849,2]
[319487728,1710800032227,-803.43,0.00026849,2]
[319487729,1710800032480,-2712.0,0.00026849,2]
[319487730,1710800032490,-618.27,0.00026849,2]
[319487731,1710800032502,-1492.36,0.00026849,2]
[319487732,1710800032511,-925.33,0.00026849,2]
[319487733,1710800032521,-1934.24,0.00026849,2]
[319487734,1710800032531,-500.0,0.00026849,2]
[319487735,1710800032540,-1347.96,0.00026849,2]
[319487736,1710800032550,-618.35,0.00026849,2]
[319487737,1710800032561,-3249.34,0.00026849,2]
[319487738,1710800032570,-736.87,0.00026849,2]
[319487739,1710800032579,-1048.99,0.00026849,2]
[319487740,1710800032589,-695.99,0.00026849,2]
[319487741,1710800032599,-1686.42,0.00026849,2]
[319487742,1710800032608,-500.0,0.00026849,2]
[319487743,1710800032622,-2027.85,0.00026849,2]
[319487744,1710800032633,-3300.65,0.00026849,2]
[319487745,1710800032642,-1879.8,0.00026849,2]
[319487746,1710800032652,-600.13,0.00026849,2]
[319487747,1710800032663,-689.62,0.00026849,2]
[319487748,1710800032673,-3602.93,0.00026849,2]
[319487749,1710800032682,-500.0,0.00026849,2]
[319487750,1710800032694,-839.53,0.00026849,2]
[319487751,1710800032703,-734.91,0.00026849,2]
[319487752,1710800032712,-1753.56,0.00026849,2]
[319487753,1710800032721,-839.74,0.00026849,2]
[319487754,1710800032730,-500.0,0.00026849,2]
[319487755,1710800032739,-4941.23,0.00026849,2]
[319487756,1710800032748,-924.55,0.00026849,2]
[319487757,1710800032757,-646.58,0.00026849,2]
[319487758,1710800032766,-1444.11,0.00026849,2]
[319487759,1710800032775,-1862.07,0.00026849,2]
[319487760,1710800032784,-2596.77,0.00026849,2]
[319487761,1710800032793,-1913.61,0.00026849,2]
[319487762,1710800032802,-600.66,0.00026849,2]
[319487763,1710800032812,-1169.17,0.00026849,2]
[319487764,1710800032821,-501.0,0.00026849,2]
[319487765,1710800032830,-671.74,0.00026849,2]
[319487766,1710800032839,-500.0,0.00026849,2]
[319487767,1710800032849,-660.79,0.00026849,2]
[319487768,1710800032858,-4429.56,0.00026849,2]
[319487769,1710800032867,-645.13,0.00026849,2]
[319487770,1710800032877,-1387.34,0.00026849,2]
[319487771,1710800032886,-1092.65,0.00026849,2]
[319487772,1710800032896,-775.21,0.00026849,2]
[319487773,1710800032905,-1234.18,0.00026849,2]
[319487774,1710800032914,-1640.92,0.00026849,2]
[319487775,1710800032924,-660.8,0.00026849,2]
[319487776,1710800032933,-618.02,0.00026849,2]
[319487777,1710800032942,-500.0,0.00026849,2]
[319487778,1710800032951,-2991.4,0.00026849,2]
[319487779,1710800032960,-526.67,0.00026849,2]
[319487780,1710800032970,-520.66,0.00026849,2]
[319487781,1710800032979,-3432.69,0.00026849,2]
[319487782,1710800032988,-2512.6,0.00026849,2]
[319487783,1710800032998,-929.21,0.00026849,2]
[319487784,1710800033008,-553.17,0.00026849,2]
[319487785,1710800033017,-632.91,0.00026849,2]
[319487786,1710800033026,-587.03,0.00026849,2]
[319487787,1710800033035,-500.0,0.00026849,2]
[319487788,1710800033044,-500.0,0.00026849,2]
[319487789,1710800033054,-1670.28,0.00026849,2]
[319487790,1710800033064,-1508.72,0.00026849,2]
[319487791,1710800033073,-500.0,0.00026849,2]
[319487792,1710800033084,-588.94,0.00026849,2]
[319487793,1710800033094,-2672.81,0.00026849,2]
[319487794,1710800033103,-992.88,0.00026849,2]
[319487795,1710800033112,-1421.34,0.00026849,2]
[319487796,1710800033121,-1479.34,0.00026849,2]
[319487797,1710800033130,-778.13,0.00026849,2]
[319487798,1710800033140,-549.69,0.00026849,2]
[319487799,1710800033149,-1591.7,0.00026849,2]
[319487800,1710800033159,-1096.72,0.00026849,2]
[319487801,1710800033168,-1855.24,0.00026849,2]
[319487802,1710800033177,-2210.21,0.00026849,2]
[319487803,1710800033186,-869.7,0.00026849,2]
[319487804,1710800033195,-1747.53,0.00026849,2]